bitfinex/quotes_BTCUSD_20240811
["timestamp","ask_amount","ask_price","bid_price","bid_amount"]
[1723387643184,1.34222692,60547.0,60546.0,0.0009141]
[1723387643403,1.37522692,60547.0,60546.0,0.0009141]
[1723387643611,1.36522692,60547.0,60546.0,0.0009141]
[1723387644043,1.37522692,60547.0,60546.0,0.0009141]
[1723387644246,1.36522692,60547.0,60546.0,0.0009141]
[1723387644453,3.72509082,60547.0,60546.0,0.0009141]
[1723387644661,1.053498,60542.0,60541.0,0.009141]
[1723387644895,1.97031292,60542.0,60541.0,0.009141]
[1723387646687,1.98431292,60542.0,60541.0,0.009141]
[1723387646923,2.16846262,60542.0,60541.0,0.009141]
[1723387647126,2.16846262,60542.0,60540.0,0.009141]
[1723387647127,1.060616,60541.0,60540.0,0.009141]
[1723387647309,1.68342538,60541.0,60540.0,0.009141]
[1723387647714,1.294802,60539.0,60538.0,0.009141]
[1723387647914,2.42567543,60539.0,60538.0,0.009141]
[1723387648687,2.26161692,60539.0,60538.0,0.009141]
[1723387649113,2.26161692,60539.0,60538.0,0.00304852]
[1723387649313,1.063669,60532.0,60515.0,0.152441]
[1723387649511,2.71287312,60532.0,60515.0,0.152441]
[1723387649744,2.81287312,60532.0,60515.0,0.152441]
[1723387650355,2.96702282,60532.0,60515.0,0.152441]
[1723387650561,2.60497312,60532.0,60515.0,0.152441]
[1723387650762,2.36079112,60532.0,60526.0,0.0649]
[1723387650967,2.36079112,60532.0,60515.0,0.009141]
[1723387650968,2.36079112,60532.0,60520.0,0.0649]
[1723387651179,2.59207312,60532.0,60521.0,0.0784]
[1723387651380,2.36079112,60532.0,60521.0,0.0784]
[1723387651764,2.39670695,60532.0,60521.0,0.0784]
[1723387651959,2.43659804,60532.0,60521.0,0.0784]
[1723387652361,2.4606185,60532.0,60521.0,0.0784]
[1723387652740,2.42470267,60532.0,60521.0,0.0784]
[1723387654598,2.42370267,60532.0,60531.0,0.0010152]
[1723387656445,2.06942067,60532.0,60531.0,0.0659152]
[1723387656790,2.04352958,60532.0,60531.0,0.0659152]
[1723387657562,2.04352958,60532.0,60531.0,0.0010152]
[1723387657563,2.30433087,60532.0,60531.0,0.0010152]
[1723387657764,2.39033087,60532.0,60531.0,0.0010152]
[1723387657971,2.63261287,60532.0,60531.0,0.0010152]
[1723387658169,2.61861287,60532.0,60531.0,0.0010152]
[1723387658340,2.38733087,60532.0,60531.0,0.0010152]
[1723387658542,2.39933087,60532.0,60531.0,0.0010152]
[1723387658943,2.41033087,60532.0,60531.0,0.0010152]
[1723387659381,2.39933087,60532.0,60531.0,0.0010152]
[1723387659717,2.64461287,60532.0,60531.0,0.0010152]
[1723387660012,0.809515,60530.0,60529.0,0.0009141]
[1723387660227,1.60736638,60530.0,60529.0,0.0009141]
[1723387660759,2.87185558,60530.0,60529.0,0.0009141]
[1723387660983,0.809662,60519.0,60518.0,0.0784]
[1723387661263,2.81638127,60530.0,60516.0,0.0784]
[1723387661264,1.2644892,60526.0,60516.0,0.0784]
[1723387661481,0.16381492,60525.0,60515.0,0.009141]
[1723387661655,0.1,60524.0,60520.0,0.0784]
[1723387661862,0.16381492,60523.0,60520.0,0.0784]
[1723387662071,0.57831,60521.0,60520.0,0.0784]
[1723387662270,0.74212492,60521.0,60520.0,0.0784]
[1723387662481,0.57832,60520.0,60519.0,0.0649]
[1723387662694,0.57832,60520.0,60516.0,0.0784]
[1723387662695,0.347008,60517.0,60516.0,0.0784]
[1723387662894,0.74216192,60517.0,60516.0,0.0784]
[1723387663293,0.97350092,60517.0,60516.0,0.0784]
[1723387664272,0.8097,60516.0,60515.0,0.009141]
[1723387664438,1.07351492,60516.0,60515.0,0.009141]
[1723387665404,1.1581446,60516.0,60515.0,0.009141]
[1723387665830,1.10051492,60516.0,60515.0,0.009141]
[1723387666031,1.25166462,60516.0,60515.0,0.009141]
[1723387666697,0.85617192,60516.0,60515.0,0.152441]
[1723387667100,0.84217192,60516.0,60515.0,0.152441]
[1723387667565,0.85617192,60516.0,60515.0,0.152441]
[1723387668854,0.87017192,60516.0,60515.0,0.152441]
[1723387669508,0.028,60516.0,60515.0,0.152441]
[1723387670046,0.028,60516.0,60515.0,0.268114]
[1723387670259,0.014,60516.0,60515.0,0.499461]
[1723387670717,0.01,60516.0,60515.0,0.499461]
[1723387670899,0.7923,60536.0,60531.0,0.0808]
[1723387671090,1.7357892,60537.0,60530.0,0.179744]
[1723387671091,0.115638,60534.0,60532.0,0.0641]
[1723387671250,0.27945192,60534.0,60533.0,0.0808]
[1723387671463,0.51072592,60534.0,60533.0,0.0808]
[1723387672065,0.74199992,60534.0,60533.0,0.0808]
[1723387672265,0.74899992,60534.0,60533.0,0.0808]
[1723387672907,0.51772592,60534.0,60533.0,0.0808]
[1723387673322,0.74899992,60534.0,60533.0,0.0808]
[1723387673722,0.74199992,60534.0,60533.0,0.0808]
[1723387674137,0.76399992,60534.0,60533.0,0.0818]
[1723387674340,0.75299992,60534.0,60533.0,0.0808]
[1723387674743,0.75199992,60534.0,60533.0,0.0818]
[1723387674919,0.74199992,60534.0,60533.0,0.0808]
[1723387675119,0.75399992,60534.0,60533.0,0.0818]
[1723387675377,0.76199992,60534.0,60533.0,0.0818]
[1723387675588,0.74199992,60534.0,60533.0,0.0808]
[1723387675990,0.51072592,60534.0,60533.0,0.0808]
[1723387676323,0.27945192,60534.0,60533.0,0.0808]
[1723387676534,0.28945192,60534.0,60533.0,0.0808]
[1723387676901,0.53072592,60534.0,60533.0,0.0818]
[1723387677313,0.52072592,60534.0,60533.0,0.0808]
[1723387677518,0.52272592,60534.0,60533.0,0.0818]
[1723387677734,0.52272592,60534.0,60533.0,0.0808]
[1723387678185,0.53172592,60534.0,60533.0,0.0818]
[1723387678430,0.51072592,60534.0,60533.0,0.0808]
[1723387678842,0.29745192,60534.0,60533.0,0.0818]
[1723387679269,0.28928292,60534.0,60533.0,0.0818]
[1723387679727,0.29828292,60534.0,60533.0,0.0818]
[1723387679935,0.52955692,60534.0,60533.0,0.0818]
[1723387680102,0.52055692,60534.0,60533.0,0.0808]
[1723387680308,0.52955692,60534.0,60533.0,0.0818]
[1723387680665,0.52955692,60534.0,60533.0,0.0808]
[1723387680666,0.75183092,60534.0,60533.0,0.0808]
[1723387680873,0.75183092,60534.0,60533.0,0.0818]
[1723387680874,0.99110492,60534.0,60533.0,0.0818]
[1723387681330,0.99110492,60534.0,60529.0,0.0808]
[1723387681331,0.346935,60530.0,60529.0,0.0808]
[1723387681532,0.346935,60530.0,60523.0,0.0808]
[1723387681533,0.231313,60524.0,60523.0,0.0808]
[1723387681733,0.51078392,60524.0,60523.0,0.0808]
[1723387681992,0.74209692,60524.0,60523.0,0.0808]
[1723387682193,0.347014,60516.0,60515.0,0.009141]
[1723387682396,0.74217192,60516.0,60515.0,0.009141]
[1723387682869,0.97351492,60516.0,60515.0,0.154041]
[1723387683269,0.97351492,60516.0,60515.0,0.089941]
[1723387683788,0.97351492,60516.0,60515.0,0.009141]
[1723387683982,1.08251492,60516.0,60515.0,0.010141]
[1723387684187,1.1475786,60516.0,60515.0,0.009141]
[1723387684395,1.08357063,60516.0,60515.0,0.009141]
[1723387684830,1.08357063,60516.0,60515.0,0.010141]
[1723387684831,1.17863431,60516.0,60515.0,0.010141]
[1723387685040,1.15395428,60516.0,60515.0,0.010141]
[1723387685256,1.08357063,60516.0,60515.0,0.009141]
[1723387685474,1.47602926,60516.0,60515.0,0.009141]
[1723387685684,1.58710217,60516.0,60515.0,0.009141]
[1723387686144,1.35191363,60516.0,60515.0,0.009141]
[1723387686554,1.36591363,60516.0,60515.0,0.010141]
[1723387686757,1.5265652,60516.0,60515.0,0.010141]
[1723387687589,2.79106648,60516.0,60515.0,0.010141]
[1723387687806,2.80106648,60516.0,60515.0,0.010141]
[1723387688029,1.051115,60512.0,60511.0,0.009241]
[1723387688152,1.32837828,60512.0,60511.0,0.009241]
[1723387688371,1.37641025,60512.0,60511.0,0.009241]
[1723387688598,1.45136098,60512.0,60511.0,0.009241]
[1723387688800,1.52284278,60512.0,60511.0,0.009241]
[1723387689011,1.32792992,60512.0,60511.0,0.009241]
[1723387689260,1.41599572,60512.0,60511.0,0.009241]
[1723387689628,1.34192992,60512.0,60511.0,0.009241]
[1723387689854,1.10157092,60512.0,60511.0,0.009241]
[1723387690250,1.08757092,60512.0,60511.0,0.009241]
[1723387690517,1.19862063,60512.0,60511.0,0.009241]
[1723387690780,1.18462063,60512.0,60511.0,0.009241]
[1723387691104,1.18462063,60512.0,60511.0,0.088741]
[1723387691105,2.35206012,60512.0,60511.0,0.088741]
[1723387691309,2.36606012,60512.0,60511.0,0.149141]
[1723387691482,2.13470112,60512.0,60511.0,0.149141]
[1723387691860,2.36606012,60512.0,60511.0,0.149141]
[1723387692194,2.35206012,60512.0,60511.0,0.149141]
[1723387692412,2.36606012,60512.0,60511.0,0.149141]
[1723387692848,0.19181492,60512.0,60511.0,0.149141]
[1723387693038,0.19181492,60512.0,60511.0,0.496184]
[1723387693039,0.028,60512.0,60511.0,0.496184]
[1723387693240,0.52485292,60512.0,60511.0,0.149141]
[1723387693493,0.52485292,60512.0,60511.0,0.009241]
[1723387693494,1.07137566,60512.0,60511.0,0.009241]
[1723387693676,1.13474129,60512.0,60511.0,0.009241]
[1723387693882,1.1207198,60512.0,60511.0,0.009241]
[1723387694292,2.66527357,60512.0,60511.0,0.009241]
[1723387694498,2.72727357,60512.0,60511.0,0.009241]
[1723387694668,2.67622386,60512.0,60511.0,0.009241]
[1723387694879,2.76423243,60512.0,60511.0,0.009241]
[1723387695282,2.59241912,60512.0,60511.0,0.009241]
[1723387695485,2.59241912,60512.0,60511.0,0.149141]
[1723387695486,0.17360671,60512.0,60511.0,0.149141]
[1723387695650,0.52485292,60512.0,60511.0,0.149141]
[1723387695847,0.75621192,60512.0,60511.0,0.149141]
[1723387696259,0.53885292,60512.0,60511.0,0.149141]
[1723387696480,0.77021192,60512.0,60511.0,0.149141]
[1723387696732,0.75621192,60512.0,60511.0,0.149141]
[1723387697227,0.53885292,60512.0,60511.0,0.149141]
[1723387697401,0.75621192,60512.0,60511.0,0.149141]
[1723387697808,0.77021192,60512.0,60511.0,0.149141]
[1723387698017,1.08257405,60512.0,60511.0,0.009241]
[1723387698244,0.77021192,60512.0,60511.0,0.009241]
[1723387698742,0.77021192,60512.0,60511.0,0.088741]
[1723387698743,0.53885292,60512.0,60511.0,0.088741]
[1723387698941,0.53885292,60512.0,60511.0,0.149141]
[1723387699345,0.30749392,60512.0,60511.0,0.149141]
[1723387699582,0.53885292,60512.0,60511.0,0.149141]
[1723387700416,0.77021192,60512.0,60511.0,0.149141]
[1723387700634,0.75621192,60512.0,60511.0,0.149141]
[1723387700782,0.74221192,60512.0,60511.0,0.149141]
[1723387700984,0.75621192,60512.0,60511.0,0.149141]
[1723387701214,1.15090893,60512.0,60511.0,0.009241]
[1723387701373,1.13457092,60512.0,60511.0,0.009241]
[1723387701569,1.46460595,60512.0,60511.0,0.009241]
[1723387701779,1.45460595,60512.0,60511.0,0.009241]
[1723387701978,1.46460595,60512.0,60511.0,0.009241]
[1723387702204,1.20024695,60512.0,60511.0,0.009241]
[1723387702412,1.10157092,60512.0,60511.0,0.009241]
[1723387702826,1.15089568,60512.0,60511.0,0.009241]
[1723387703042,1.10157092,60512.0,60511.0,0.009241]
[1723387703600,1.10157092,60512.0,60511.0,0.069736]
[1723387703793,0.87021192,60512.0,60511.0,0.069736]
[1723387703997,0.53885292,60512.0,60511.0,0.149236]
[1723387704565,0.77021192,60512.0,60511.0,0.149236]
[1723387704766,0.53885292,60512.0,60511.0,0.149236]
[1723387705007,0.028,60512.0,60511.0,0.264917]
[1723387705213,0.028,60512.0,60511.0,0.496279]
[1723387705411,0.028,60512.0,60511.0,0.149236]
[1723387705851,0.028,60512.0,60511.0,0.264917]
[1723387706059,0.000831,60515.0,60513.0,0.115677]
[1723387706261,0.000831,60515.0,60514.0,0.0795]
[1723387706436,0.000831,60515.0,60514.0,0.139995]
[1723387706641,0.000831,60515.0,60514.0,0.487021]
[1723387706844,0.000831,60515.0,60514.0,0.718372]
[1723387707524,0.005831,60515.0,60514.0,0.949723]
[1723387707956,0.005831,60515.0,60514.0,0.718372]
[1723387707957,0.000831,60515.0,60514.0,0.718372]
[1723387708157,0.000831,60515.0,60514.0,0.487021]
[1723387708335,0.002831,60515.0,60514.0,0.718372]
[1723387708770,0.000831,60515.0,60514.0,0.718372]
[1723387709175,0.000831,60515.0,60514.0,0.721372]
[1723387709443,0.002831,60515.0,60514.0,0.721372]
[1723387709775,0.000831,60515.0,60514.0,0.721372]
[1723387709979,0.000831,60515.0,60514.0,0.724372]
[1723387710650,0.000831,60515.0,60514.0,0.721372]
[1723387711002,0.000831,60515.0,60514.0,0.719372]
[1723387711434,0.000831,60515.0,60514.0,0.721372]
[1723387711842,0.000831,60515.0,60514.0,0.723372]
[1723387712760,0.000831,60534.0,60528.0,0.075]
[1723387713069,0.49107874,60529.0,60528.0,0.421945]
[1723387713282,0.16464592,60534.0,60531.0,0.115642]
[1723387713524,0.16464592,60534.0,60532.0,0.075]
[1723387713710,0.115639,60533.0,60532.0,0.075]
[1723387714670,0.16464592,60534.0,60532.0,0.075095]
[1723387714671,0.28028292,60534.0,60532.0,0.075095]
[1723387714990,0.17164592,60534.0,60532.0,0.076095]
[1723387715405,0.000831,60534.0,60533.0,0.181339]
[1723387715617,0.000831,60534.0,60533.0,0.487712]
[1723387715966,0.006831,60534.0,60533.0,0.950268]
[1723387716371,0.006831,60534.0,60533.0,0.71899]
[1723387716779,0.000831,60534.0,60533.0,0.71899]
[1723387716977,0.007831,60534.0,60533.0,0.71999]
[1723387717406,0.000831,60534.0,60533.0,0.71899]
[1723387718269,0.001831,60534.0,60533.0,0.71899]
[1723387719042,0.001831,60534.0,60533.0,0.140795]
[1723387719243,0.001831,60534.0,60533.0,0.256434]
[1723387719880,0.001831,60534.0,60533.0,0.140795]
[1723387719881,0.117468,60534.0,60533.0,0.140795]
[1723387720089,0.51255692,60534.0,60533.0,0.075095]
[1723387720294,0.28128292,60534.0,60533.0,0.075095]
[1723387720497,0.001831,60534.0,60533.0,0.422012]
[1723387720694,0.001831,60534.0,60533.0,0.71899]
[1723387720906,0.001831,60534.0,60533.0,0.140795]
[1723387721981,0.001831,60534.0,60533.0,0.256434]
[1723387722176,0.001831,60534.0,60533.0,0.487712]
[1723387722376,0.001831,60534.0,60533.0,0.256434]
[1723387722632,0.001831,60534.0,60533.0,0.487712]
[1723387722923,0.001831,60534.0,60533.0,0.256434]
[1723387723744,0.001831,60534.0,60533.0,0.487712]
[1723387723970,0.001831,60534.0,60533.0,0.71899]
[1723387724323,0.001831,60534.0,60533.0,0.950268]
[1723387725813,0.001831,60534.0,60533.0,0.487712]
[1723387726017,0.001831,60534.0,60533.0,0.140795]
[1723387726220,0.001831,60534.0,60533.0,0.256434]
[1723387726422,0.001831,60534.0,60533.0,0.140795]
[1723387726956,0.117468,60534.0,60533.0,0.140795]
[1723387727150,0.001831,60534.0,60533.0,0.140795]
[1723387728039,0.117468,60534.0,60533.0,0.140795]
[1723387728551,0.117468,60534.0,60533.0,9.5e-05]
[1723387728552,0.74383092,60534.0,60533.0,9.5e-05]
[1723387729053,0.97510492,60534.0,60533.0,9.5e-05]
[1723387729856,0.97410492,60534.0,60533.0,9.5e-05]
[1723387730109,0.99700492,60534.0,60533.0,9.5e-05]
[1723387730287,1.02400492,60534.0,60533.0,0.002095]
[1723387730677,1.00110492,60534.0,60533.0,0.002095]
[1723387731049,0.75583092,60534.0,60533.0,0.001095]
[1723387731265,1.00110492,60534.0,60533.0,0.002095]
[1723387734553,1.02400492,60534.0,60533.0,0.002095]
[1723387735186,3.36903375,60534.0,60533.0,0.002095]
[1723387735368,2.59947094,60534.0,60533.0,0.002095]
[1723387735947,2.52775975,60534.0,60533.0,0.002095]
[1723387736174,2.47057527,60534.0,60533.0,0.002095]
[1723387736411,2.46057527,60534.0,60533.0,0.002095]
[1723387736595,2.46049723,60534.0,60533.0,0.002095]
[1723387736795,2.43759723,60534.0,60533.0,0.002095]
[1723387737006,2.13432012,60534.0,60533.0,0.002095]
[1723387737202,2.10732012,60534.0,60533.0,9.5e-05]
[1723387737357,2.35259412,60534.0,60533.0,0.001095]
[1723387737569,2.36659412,60534.0,60533.0,0.001095]
[1723387737773,2.35259412,60534.0,60533.0,9.5e-05]
[1723387738132,2.35259412,60534.0,60533.0,0.001095]
[1723387738511,2.36659412,60534.0,60533.0,0.001095]
[1723387741240,1.10210492,60534.0,60533.0,0.001095]
[1723387745355,0.19264592,60534.0,60533.0,0.001095]
[1723387745562,0.53955692,60534.0,60533.0,0.145395]
[1723387745968,0.30828292,60534.0,60533.0,0.145395]
[1723387746388,0.52555692,60534.0,60533.0,0.144395]
[1723387746773,0.75683092,60534.0,60533.0,0.144395]
[1723387747199,0.74283092,60534.0,60533.0,0.144395]
[1723387747418,0.75683092,60534.0,60533.0,0.144395]
[1723387747621,0.76783092,60534.0,60533.0,0.144395]
[1723387747781,0.75383092,60534.0,60533.0,0.144395]
[1723387748144,0.52255692,60534.0,60533.0,0.144395]
[1723387748347,0.30228292,60534.0,60533.0,0.144395]
[1723387748463,0.53355692,60534.0,60533.0,0.144395]
[1723387748657,0.30228292,60534.0,60533.0,0.144395]
[1723387749087,0.53355692,60534.0,60533.0,0.144395]
[1723387749701,0.76483092,60534.0,60533.0,0.144395]
[1723387749903,0.53355692,60534.0,60533.0,0.144395]
[1723387752778,0.30228292,60534.0,60533.0,0.144395]
[1723387752998,0.18664592,60534.0,60533.0,0.260034]
[1723387753756,0.30228292,60534.0,60533.0,0.144395]
[1723387753950,0.18664592,60534.0,60533.0,0.144395]
[1723387754471,0.022831,60534.0,60533.0,0.72259]
[1723387754930,0.022831,60534.0,60533.0,0.491312]
[1723387757882,0.022831,60534.0,60533.0,0.260034]
[1723387758112,0.022831,60534.0,60533.0,0.491312]
[1723387759275,0.30228292,60534.0,60533.0,0.144395]
[1723387759528,0.99610492,60534.0,60533.0,9.5e-05]
[1723387759757,1.17004974,60534.0,60533.0,9.5e-05]
[1723387759995,1.15740492,60534.0,60533.0,9.5e-05]
[1723387760244,1.35141892,60534.0,60533.0,9.5e-05]
[1723387760517,2.80844245,60534.0,60533.0,9.5e-05]
[1723387760818,3.41144245,60534.0,60533.0,9.5e-05]
[1723387760954,3.41144245,60534.0,60517.0,0.0783]
[1723387760955,0.347004,60518.0,60517.0,0.0783]
[1723387761193,0.74215492,60518.0,60517.0,0.0783]
[1723387761435,0.74215492,60518.0,60515.0,0.0792141]
[1723387761436,0.578357,60516.0,60515.0,0.0792141]
[1723387761664,0.74217192,60516.0,60515.0,0.0009141]
[1723387761899,0.79161475,60516.0,60515.0,0.0009141]
[1723387762507,0.74217192,60516.0,60515.0,0.0009141]
[1723387762707,0.97351492,60516.0,60515.0,0.0009141]
[1723387762907,1.07351492,60516.0,60515.0,0.0009141]
[1723387763112,1.14427179,60516.0,60515.0,0.0009141]
[1723387763321,3.30449467,60516.0,60515.0,0.0009141]
[1723387763547,3.40879467,60516.0,60515.0,0.0009141]
[1723387763754,3.55701498,60516.0,60515.0,0.0009141]
[1723387763963,1.041115,60512.0,60511.0,0.009241]
[1723387764167,1.43731329,60512.0,60511.0,0.009241]
[1723387764375,1.43731329,60512.0,60508.0,0.0119974]
[1723387764376,0.839795,60509.0,60508.0,0.0119974]
[1723387764577,0.379973,60506.0,60489.0,0.0783]
[1723387764799,2.08889454,60506.0,60489.0,0.0783]
[1723387765011,2.33027654,60506.0,60489.0,0.0783]
[1723387765224,2.33027654,60506.0,60480.0,0.009241]
[1723387765225,0.578587,60492.0,60480.0,0.009241]
[1723387765437,0.74240192,60492.0,60485.0,0.087441]
[1723387765657,0.97383692,60492.0,60485.0,0.087441]
[1723387766093,0.74240192,60492.0,60485.0,0.087441]
[1723387766529,0.97383692,60492.0,60485.0,0.087441]
[1723387766928,0.74540192,60492.0,60485.0,0.087441]
[1723387767586,0.51396692,60492.0,60491.0,0.0784]
[1723387767999,0.51696692,60492.0,60491.0,0.0784]
[1723387768464,0.28553192,60492.0,60491.0,0.0784]
[1723387768886,0.74840192,60492.0,60491.0,0.0784]
[1723387769088,0.51696692,60492.0,60491.0,0.0784]
[1723387769315,0.74840192,60492.0,60491.0,0.0784]
[1723387770185,1.26688662,60492.0,60491.0,0.0001]
[1723387770410,2.82861082,60492.0,60491.0,0.0001]
[1723387770843,2.66446112,60492.0,60491.0,0.0001]
[1723387771096,2.57276112,60492.0,60491.0,0.0001]
[1723387771318,2.56976112,60492.0,60491.0,0.0001]
[1723387771997,0.0008,60490.0,60485.0,0.009141]
[1723387772225,0.0008,60490.0,60468.0,0.009141]
[1723387772226,0.347244,60476.0,60468.0,0.009141]
[1723387772402,0.347268,60472.0,60468.0,0.009141]
[1723387772644,1.07410692,60472.0,60468.0,0.009141]
[1723387773458,1.30561892,60472.0,60468.0,0.009141]
[1723387773668,1.44131892,60472.0,60468.0,0.009141]
[1723387774089,2.08131892,60472.0,60468.0,0.009141]
[1723387774514,1.44131892,60472.0,60468.0,0.009141]
[1723387774723,1.44531892,60472.0,60468.0,0.009141]
[1723387774925,1.33361892,60472.0,60468.0,0.009141]
[1723387775134,1.31961892,60472.0,60468.0,0.009141]
[1723387775543,1.32969367,60472.0,60468.0,0.009141]
[1723387775933,1.31569367,60472.0,60468.0,0.009141]
[1723387776388,1.32969367,60472.0,60468.0,0.009141]
[1723387776595,1.34369367,60472.0,60468.0,0.009141]
[1723387776813,1.09818167,60472.0,60468.0,0.009141]
[1723387777025,1.08418167,60472.0,60468.0,0.009141]
[1723387777217,1.11218167,60472.0,60468.0,0.009141]
[1723387777700,1.09818167,60472.0,60468.0,0.009141]
[1723387778248,1.09818167,60472.0,60471.0,0.0824141]
[1723387778249,1.11218167,60472.0,60471.0,0.0824141]
[1723387779158,0.19181492,60472.0,60471.0,0.0824141]
[1723387779365,0.143756,60472.0,60471.0,0.0824141]
[1723387779565,0.375268,60472.0,60471.0,0.0824141]
[1723387779768,0.347268,60472.0,60471.0,0.0824141]
[1723387780027,0.03,60473.0,60471.0,0.0824141]
[1723387780227,0.028,60472.0,60471.0,0.0824141]
[1723387780635,0.014,60472.0,60471.0,0.0824141]
[1723387781102,0.014,60472.0,60471.0,0.4296861]
[1723387781272,0.028,60472.0,60471.0,0.4296861]
[1723387781689,0.014,60472.0,60471.0,0.0824141]
[1723387782818,0.028,60472.0,60471.0,0.0824141]
[1723387782946,0.014,60472.0,60471.0,0.1981711]
[1723387783152,0.014,60472.0,60471.0,0.0824141]
[1723387783430,0.018,60472.0,60471.0,0.0824141]
[1723387783824,0.018,60472.0,60471.0,0.1981711]
[1723387784474,0.004,60472.0,60471.0,0.4296861]
[1723387784689,0.01,60472.0,60471.0,0.6612011]
[1723387785036,0.004,60472.0,60471.0,0.4296861]
[1723387785235,0.007,60472.0,60471.0,0.4296861]
[1723387785633,0.004,60472.0,60471.0,0.4296861]
[1723387786075,0.007,60472.0,60471.0,0.6612011]
[1723387786226,0.003,60472.0,60471.0,0.6612011]
[1723387787158,0.1,60481.0,60477.0,0.115744]
[1723387787389,0.16381492,60480.0,60478.0,0.0814]
[1723387787916,1.4959402,60488.0,60481.0,0.0797]
[1723387788120,0.26381492,60487.0,60481.0,0.0797]
[1723387788325,0.16381492,60487.0,60484.0,0.0797]
[1723387788525,0.16381492,60487.0,60484.0,0.195432]
[1723387789019,0.16381492,60487.0,60484.0,0.0797]
[1723387789150,0.16381492,60487.0,60484.0,0.195431]
[1723387789350,0.17781492,60487.0,60484.0,0.195431]
[1723387789599,0.17781492,60487.0,60484.0,0.0797]
[1723387789812,0.17781492,60487.0,60485.0,0.11573]
[1723387790600,0.17864592,60487.0,60484.0,0.0797]
[1723387790803,0.16464592,60487.0,60484.0,0.0797]
[1723387791006,0.17864592,60487.0,60484.0,0.0797]
[1723387791266,0.27449238,60487.0,60484.0,0.0797]
[1723387791431,0.37621938,60487.0,60484.0,0.0797]
[1723387791636,0.115731,60485.0,60484.0,0.0797]
[1723387791836,0.347221,60480.0,60479.0,0.145]
[1723387792112,0.16381492,60480.0,60479.0,0.145]
[1723387792332,0.11575,60475.0,60474.0,0.0797]
[1723387792535,0.27956492,60475.0,60474.0,0.0797]
[1723387793393,0.74256492,60475.0,60474.0,0.0797]
[1723387793925,0.347268,60472.0,60471.0,0.0010141]
[1723387794128,0.74259492,60472.0,60471.0,0.0010141]
[1723387794527,1.07410692,60472.0,60471.0,0.0010141]
[1723387794951,0.84259492,60472.0,60471.0,0.0010141]
[1723387795515,0.84659492,60472.0,60471.0,0.0010141]
[1723387796052,0.62308292,60472.0,60471.0,0.0807141]
[1723387796421,0.85459492,60472.0,60471.0,0.0807141]
[1723387796785,0.85059492,60472.0,60471.0,0.0807141]
[1723387796981,0.84259492,60472.0,60471.0,0.0807141]
[1723387797318,0.84959492,60472.0,60471.0,0.0807141]
[1723387797504,0.85759492,60472.0,60471.0,0.0807141]
[1723387798103,0.62608292,60472.0,60471.0,0.0807141]
[1723387798306,0.61808292,60472.0,60471.0,0.0807141]
[1723387798504,0.00982626,60476.0,60471.0,0.1460141]
[1723387798805,0.066249,60484.0,60472.0,0.0797]
[1723387798806,0.16381492,60475.0,60472.0,0.0797]
[1723387799007,0.115752,60474.0,60472.0,0.0797]
[1723387799498,0.16381492,60475.0,60473.0,0.0797]
[1723387799693,0.115752,60474.0,60473.0,0.0797]
[1723387800098,0.51107092,60474.0,60473.0,0.0797]
[1723387800723,0.1,60481.0,60474.0,0.0653]
[1723387800924,0.115747,60477.0,60475.0,0.0797]
[1723387801161,0.16381492,60477.0,60475.0,0.0797]
[1723387801385,0.03,60476.0,60475.0,0.0797]
[1723387802351,0.03,60476.0,60475.0,0.72375]
[1723387802568,0.014,60481.0,60480.0,0.723702]
[1723387802742,0.014,60481.0,60480.0,0.955183]
[1723387802983,0.014,60481.0,60480.0,1.08897495]
[1723387803199,0.000831,60487.0,60486.0,0.347187]
[1723387803456,0.16464592,60487.0,60486.0,0.0797]
[1723387803676,0.000831,60487.0,60486.0,0.723645]
[1723387803907,0.000831,60487.0,60486.0,0.492187]
[1723387804110,0.000831,60487.0,60486.0,0.723645]
[1723387804870,0.007831,60487.0,60486.0,0.723645]
[1723387806413,0.000831,60487.0,60486.0,0.723645]
[1723387806631,0.003831,60487.0,60486.0,0.723645]
[1723387807050,0.000831,60487.0,60486.0,0.723645]
[1723387807528,0.000831,60487.0,60486.0,0.724645]
[1723387807949,0.000831,60487.0,60486.0,0.956103]
[1723387808150,0.000831,60487.0,60486.0,1.09927106]
[1723387808352,0.000831,60487.0,60486.0,0.965103]
[1723387808622,0.000831,60487.0,60486.0,1.53853788]
[1723387809346,0.000831,60492.0,60491.0,0.820036]
[1723387809554,0.000831,60492.0,60491.0,1.53288168]
[1723387809762,0.000831,60492.0,60491.0,1.55288168]
[1723387810009,0.000831,60492.0,60491.0,1.30144268]
[1723387811211,0.001831,60492.0,60491.0,1.53388168]
[1723387811630,0.002831,60492.0,60491.0,1.6996966]
[1723387811988,0.002831,60492.0,60491.0,1.7196966]
[1723387812170,0.002831,60492.0,60491.0,1.6996966]
[1723387812367,0.002831,60492.0,60491.0,1.7196966]
[1723387812576,0.002831,60492.0,60491.0,1.48941078]
[1723387812798,0.002831,60492.0,60491.0,0.63391786]
[1723387812998,0.002831,60492.0,60491.0,0.152]
[1723387813196,0.74523292,60492.0,60491.0,0.003]
[1723387813456,0.51379792,60492.0,60491.0,0.003]
[1723387813662,0.51279792,60492.0,60491.0,0.001]
[1723387813896,0.115725,60488.0,60487.0,0.0832]
[1723387814098,0.347175,60488.0,60487.0,0.0832]
[1723387814312,0.115725,60488.0,60487.0,0.0832]
[1723387814504,0.08184646,60489.0,60487.0,0.0832]
[1723387814638,0.19757046,60489.0,60487.0,0.0832]
[1723387814826,0.115729,60487.0,60483.0,0.198933]
[1723387815026,0.27954392,60486.0,60483.0,0.0832]
[1723387815240,0.16381492,60486.0,60483.0,0.0832]
[1723387815473,0.16381492,60486.0,60484.0,0.115731]
[1723387815676,0.16381492,60486.0,60483.0,0.0832]
[1723387815870,0.16381492,60486.0,60483.0,0.198934]
[1723387816629,0.16381492,60486.0,60484.0,0.115733]
[1723387816975,0.17081492,60486.0,60483.0,0.0832]
[1723387817173,0.17081492,60486.0,60483.0,0.198934]
[1723387817375,0.17081492,60486.0,60484.0,0.115732]
[1723387817627,0.013,60486.0,60485.0,0.115731]
[1723387817824,0.007,60486.0,60485.0,0.347193]
[1723387818150,0.11572,60491.0,60487.0,0.115727]